Cogmind - Beta 13 @@@ ROGUE MODE // 2024.04.07 @ 10:01:29 Player: gabr Result: Destroyed by G-47 Trooper with Particle Gun Performance ------------- Evolutions (2) 1000 Regions Visited (4) 800 Robots Destroyed (44) 220 Value Destroyed (1138) 1138 Prototype IDs (7) 140 Alien Tech Used (0) 0 Bonus (386) 386 TOTAL SCORE: 3684 Bonus ------- High Alert Combat Kills 106 Follower Combat Kills 430 Friendly Fire -150 Cogmind --------- Core Integrity 0/550 Matter 166/300 Energy 156/290 System Corruption 0% Temperature Cool (9) Movement Flying (23) Location -8/Materials Parts ------- > --- POWER (2) -------- Improved Deuterium Engine > --- PROPULSION (5) --- VTOL Module VTOL Module VTOL Module Improved VTOL Module Improved VTOL Module > --- UTILITY (2) ------ Improved Heat Sink > --- WEAPON (2) ------- Spear Spear > --- INVENTORY (5) ---- Improved Deuterium Engine VTOL Module VTOL Module Peak State ------------ > --- POWER ------------ Improved Deuterium Engine Improved Deuterium Engine > --- PROPULSION ------- VTOL Module VTOL Module Improved VTOL Module Improved VTOL Module Improved VTOL Module > --- UTILITY ---------- Improved Heat Sink Cooling System > --- WEAPON ----------- Lightning Gun Lightning Gun > --- INVENTORY -------- Heavy Ion Engine VTOL Module VTOL Module VTOL Module VTOL Module [Rating: 38] Favorites ----------- Power Ion Engine Engine Ion Engine Power Core Nuclear Core Propulsion Improved VTOL Module Leg Aluminum Leg Wheel Wheel Flight Unit Improved VTOL Module Utility Improved Terrain Scanner Device Improved Terrain Scanner Storage Small Storage Unit Protection Core Shielding Weapon Assault Rifle Energy Gun Medium Laser Energy Cannon Advanced Beam Cannon Ballistic Gun Assault Rifle Special Weapon Mining Laser Piercing Weapon Spear Build | -11 -10 -9 -9 -8 ------- Run | Yrd Mat Mat Sto Mat Slots Evolved 4 | . . 2 . 2 Power 1 | . . . . 1 Propulsion 3 | . . 2 . 1 Utility . | . . . . . Weapon . | . . . . . Parts Attached 79 | 8 6 7 17 41 Power 18 | 2 2 2 2 10 Engine 17 | 2 2 2 2 9 Core 1 | . . . . 1 Reactor . | . . . . . Propulsion 27 | 2 1 4 1 19 Treads . | . . . . . Leg 6 | . . . . 6 Wheel 3 | 2 1 . . . Hover . | . . . . . Flight 18 | . . 4 1 13 Utility 12 | 2 1 . 4 5 Device 10 | 1 1 . 3 5 Storage 1 | 1 . . . . Processor . | . . . . . Hackware . | . . . . . Protection 1 | . . . 1 . Artifact . | . . . . . Weapon 22 | 2 2 1 10 7 Energy Gun 11 | 1 1 1 4 4 Energy Cannon 2 | . . . 2 . Ballistic Gun 4 | 1 . . 2 1 Ballistic Cannon . | . . . . . Launcher . | . . . . . Special Weapon 3 | . 1 . 2 . Impact Weapon . | . . . . . Slashing Weapon . | . . . . . Piercing Weapon 2 | . . . . 2 Special Melee Weapon . | . . . . . Unidentified Prototypes 7 | . . 1 5 1 Parts Lost 10 | . 3 1 . 6 Power 2 | . . . . 2 Propulsion 3 | . 1 . . 2 Utility 2 | . 1 . . 1 Weapon 3 | . 1 1 . 1 Highest Loss Streak 3 | . 2 1 . 3 To Critical Strikes . | . . . . . Average Slot Usage (%) 93 | . 98 81 94 79 Engine 12 | . 14 11 11 9 Leg 1 | . . . . 4 Wheel 16 | . 27 4 . . Flight 14 | . . 34 42 32 Device 20 | . 24 11 14 14 Storage 2 | . 3 . . . Protection 1 | . . . 4 1 Energy Gun 6 | . 6 13 10 4 Energy Cannon 2 | . . . 8 6 Ballistic Gun 9 | . 14 7 2 4 Special Weapon 4 | . 7 . 1 . Naked Turns . | . . . . . Heaviest Build 27 | 15 15 11 18 27 Greatest Support 50 | 20 20 20 20 50 Greatest Overweight (x) 1 | 1 . 1 . 1 Average Overweight (x) . | . . . . . Largest Inventory Capacity 8 | 8 8 5 5 5 Average Capacity 5 | 6 5 5 5 5 Most Carried 8 | 8 8 5 5 5 Average Carried 5 | 1 5 4 4 4 Final Capacity 8 | 8 5 5 5 5 Final Carried 8 | 8 5 5 5 3 Class Distribution -------------------- 36% | Mutant 34% | Scavenger-Mutant 18% | Sprinter 8% | Commander-Sprinter Dominant Class ---------------- Scavenger-Mutant | -10/Materials Sprinter | -9/Materials Commander-Sprinter | -9/Storage Sprinter | -8/Materials Resources | -11 -10 -9 -9 -8 ----------- Run | Yrd Mat Mat Sto Mat Matter Collected 1082 | 166 82 173 328 333 Remotely . | . . . . . Salvage Created 1716 | 126 125 159 261 1045 Parts 103 | 10 9 11 17 56 Haulers Intercepted 5 | . . . 3 2 Recyclers Shooed 2 | 1 1 . . . Parts Field Recycled . | . . . . . Retrieved Matter . | . . . . . Parts Self-Destructed . | . . . . . Prevented . | . . . . . Kills | -11 -10 -9 -9 -8 ------- Run | Yrd Mat Mat Sto Mat Combat Hostiles Destroyed 28 | . 4 2 3 19 Melee 3 | . . . . 3 Guns 12 | . 4 2 3 3 Cannons 13 | . . . . 13 Classes Destroyed 10 | 2 3 1 2 2 Worker 3 | . 1 2 . . Tunneler 4 | 2 1 1 . . Hauler 5 | . . . 3 2 Recycler 2 | 1 . . . 1 Operator 1 | . . . . 1 Swarmer 6 | . 3 . . 3 Grunt 12 | . 1 1 . 10 Protector 1 | . . . 1 . Sentry 8 | . . 1 2 5 Hunter 2 | . . . . 2 Best Kill Streak 5 | 1 2 3 4 5 Combat Bots Only 3 | . 2 1 2 3 Max Kills in Single Turn 2 | 1 1 1 1 2 Gunslinging . | . . . . . Exploded . | . . . . . Melee 1 | . . . . 1 Uniques/NPCs Destroyed . | . . . . . Combat | -11 -10 -9 -9 -8 -------- Run | Yrd Mat Mat Sto Mat Hostile Shots Fired 246 | . 43 15 27 161 Missed 94 | . 11 8 11 64 Damage Taken 2120 | . 290 87 231 1512 Core 760 | . 87 18 96 559 Absorbed by Shields . | . . . . . Redirected to Shielding 21 | . . . . 21 Regen/Repaired (Parts) 67 | . . . 59 8 Core Remaining (%) 78 | 100 65 . 71 . Volleys Fired 168 | 11 39 15 22 81 Largest 2 | 2 2 2 2 2 Hottest 156 | 70 120 90 156 136 Shots Fired 275 | 19 59 29 44 124 Gun 184 | 19 48 29 42 46 Cannon 78 | . . . . 78 Launcher . | . . . . . Special 13 | . 11 . 2 . Kinetic 91 | 11 30 10 12 28 Thermal 184 | 8 29 19 32 96 Explosive . | . . . . . Electromagnetic . | . . . . . Robot Hit Streak 12 | 8 5 9 5 12 Robot Miss Streak 3 | 2 3 2 3 3 Penetration Max . | . . . . . Secondary Targets . | . . . . . Shots Hit Robots 160 | 12 28 17 22 81 Core Hits 64 | 4 9 7 10 34 Critical Kills 1 | . . . . 1 Critical Parts Destroyed . | . . . . . Critical Strikes 8 | 1 1 2 2 2 Burn 6 | 1 1 2 2 . Meltdown 1 | . . . . 1 Impale 1 | . . . . 1 Melee Attacks 11 | . . . . 11 Impact . | . . . . . Slashing . | . . . . . Piercing 11 | . . . . 11 Sneak Attacks . | . . . . . Combat Hostiles . | . . . . . Follow-up Attacks . | . . . . . Damage Inflicted 2745 | 148 378 201 385 1633 Guns 1490 | 148 378 201 385 378 Cannons 938 | . . . . 938 Explosions . | . . . . . Melee 317 | . . . . 317 Ramming . | . . . . . Kinetic 839 | 98 252 77 148 264 Thermal 1589 | 50 126 124 237 1052 Explosive . | . . . . . Electromagnetic . | . . . . . Impact . | . . . . . Slashing . | . . . . . Piercing 317 | . . . . 317 Highest Corruption . | . . . . . Average Corruption . | . . . . . Corruption Purged . | . . . . . Corruption Blocked . | . . . . . Overload Shots . | . . . . . Overflow Damage . | . . . . . Projectiles . | . . . . . Explosions . | . . . . . Melee . | . . . . . Knockbacks . | . . . . . Impact . | . . . . . Kinetic . | . . . . . Secondary . | . . . . . Self-Inflicted Damage . | . . . . . Shots . | . . . . . Rammed . | . . . . . Targets Rammed . | . . . . . Kicked . | . . . . . Crushed . | . . . . . Highest Temperature 289 | 9 175 219 275 289 Average Temperature 74 | 6 68 110 81 60 Received Heat Transfer 954 | . 90 39 51 774 Effects 2 | . . . . 2 Interference 2 | . . . . 2 Siege Activations . | . . . . . Robots Corrupted . | . . . . . Combat Hostiles . | . . . . . Parts Fried . | . . . . . Impact Corruptions . | . . . . . Robots Melted 1 | . . . . 1 Combat Hostiles . | . . . . . Parts Melted 6 | . 1 1 2 2 Heat Transferred 3818 | 222 444 506 694 1952 Parts Sabotaged . | . . . . . Parts Stolen . | . . . . . Parts Stripped . | . . . . . Power Chain Reactions . | . . . . . Alert | -11 -10 -9 -9 -8 ------- Run | Yrd Mat Mat Sto Mat Peak Influence 659 | 15 70 115 659 527 Initial 193 | . 9 29 48 193 Average 135 | 8 10 62 368 361 Maximum Alert Level 2 | . . . 2 2 Low Security (%) 73 | 100 100 100 35 15 Level 1 11 | . . . 15 43 Level 2 15 | . . . 48 40 Level 3 . | . . . . . Level 4 . | . . . . . Level 5 . | . . . . . High Security . | . . . . . Max Security . | . . . . . Squads Dispatched 10 | . 2 . 6 2 Investigation 1 | . . . . 1 Extermination . | . . . . . Reinforcement 3 | . 2 . . 1 Assault 3 | . . . 3 . Garrison 3 | . . . 3 . Intercept . | . . . . . Searches Triggered . | . . . . . Construction Impeded . | . . . . . Haulers Reinforced . | . . . . . Active Scanning Responses . | . . . . . Cargo Convoy Interrupts . | . . . . . Stealth | -11 -10 -9 -9 -8 --------- Run | Yrd Mat Mat Sto Mat Distress Signals 8 | . 1 . 5 2 Communications Jammed . | . . . . . Distress Signals . | . . . . . Times Spotted 66 | . 7 2 19 38 Peak Tracking Total 10 | . 3 2 10 6 Tactical Retreats 2 | . . . . 2 Traps | -11 -10 -9 -9 -8 ------- Run | Yrd Mat Mat Sto Mat Traps Triggered 2 | . . . . 2 Indirectly . | . . . . . Trap Hack Attempts . | . . . . . Triggered . | . . . . . Disarmed . | . . . . . Reprogrammed . | . . . . . Reused . | . . . . . Traps Extracted . | . . . . . Installed . | . . . . . Triggered . | . . . . . Machines | -11 -10 -9 -9 -8 ---------- Run | Yrd Mat Mat Sto Mat Machines Disabled 2 | . . . 2 . Max in Single Turn 1 | . . . 1 . Machines Repaired . | . . . . . Machines Dismantled . | . . . . . Machines Sabotaged . | . . . . . Overloaded Fab Kills . | . . . . . Hacking | -11 -10 -9 -9 -8 --------- Run | Yrd Mat Mat Sto Mat Machines Accessed 7 | . . . 5 2 Terminals 5 | . . . 4 1 Fabricators . | . . . . . Repair Stations 2 | . . . 1 1 Recycling Units . | . . . . . Scanalyzers . | . . . . . Garrison Access . | . . . . . Total Hacks 19 | . . . 12 7 Successful 11 | . . . 7 4 Failed 8 | . . . 5 3 Catastrophic 1 | . . . 1 . Database Lockouts . | . . . . . Manual 8 | . . . 7 1 Terminals 8 | . . . 7 1 Fabricators . | . . . . . Repair Stations 11 | . . . 5 6 Recycling Units . | . . . . . Scanalyzers . | . . . . . Garrison Access . | . . . . . Terminal Hacks 1 | . . . . 1 Unreport Threat 1 | . . . . 1 Fabricator Hacks . | . . . . . Repair Station Hacks 7 | . . . 4 3 Scan Component 4 | . . . 2 2 Repair 3 | . . . 2 1 Recycling Unit Hacks . | . . . . . Scanalyzer . | . . . . . Garrison Access Hacks . | . . . . . Unauthorized Hacks 3 | . . . 3 . Terminals 3 | . . . 3 . Assimilate 3 | . . . 3 . Fabricators . | . . . . . Repair Stations . | . . . . . Recycling Units . | . . . . . Scanalyzers . | . . . . . Garrison Access . | . . . . . Data Cores Recovered . | . . . . . Used . | . . . . . Hacking Detections 4 | . . . 3 1 Full Trace Events 1 | . . . . 1 Feedback Events . | . . . . . Feedback Blocked . | . . . . . Robot Schematics Acquired . | . . . . . Robots Built . | . . . . . Authchips . | . . . . . Time . | . . . . . Total Robot Build Rating . | . . . . . Part Schematics Acquired . | . . . . . Parts Built . | . . . . . Authchips . | . . . . . Time . | . . . . . Total Part Build Rating . | . . . . . Parts Repaired 3 | . . . 2 1 Time 187 | . . . 111 76 Parts Recycled . | . . . . . Recycled Matter . | . . . . . Retrieved Matter . | . . . . . Retrieved Components . | . . . . . Parts Scanalyzed . | . . . . . Part Schematics Acquired . | . . . . . Parts Damaged . | . . . . . Bothacking | -11 -10 -9 -9 -8 ------------ Run | Yrd Mat Mat Sto Mat Used RIF Installer . | . . . . . Robots Hacked . | . . . . . Non-combat . | . . . . . Combat . | . . . . . Robot Hacks Applied . | . . . . . Relay Couplers Released . | . . . . . Fabnet Peak Effective % . | . . . . . Robots Rewired . | . . . . . Allies Hacked . | . . . . . Hacks Repelled . | . . . . . Allies | -11 -10 -9 -9 -8 -------- Run | Yrd Mat Mat Sto Mat Total Allies 14 | . . . 14 . Largest Group 14 | . . . 14 7 Highest-Rated Group 170 | . . . 170 91 Highest-Rated Ally 31 | . . . 31 31 Total Orders . | . . . . . Ally Attacks 133 | . . . 110 23 Total Damage 1426 | . . . 1183 243 Kills 15 | . . . 14 1 Allies Corrupted . | . . . . . Allies Melted . | . . . . . Intel | -11 -10 -9 -9 -8 ------- Run | Yrd Mat Mat Sto Mat Robot Analysis Total . | . . . . . Derelict Logs Recovered . | . . . . . Drone Launches . | . . . . . Drone Recoveries . | . . . . . Exploration | -11 -10 -9 -9 -8 ------------- Run | Yrd Mat Mat Sto Mat Turns Passed 3178 | 127 1837 104 426 684 Spaces Moved 1567 | 97 245 103 462 660 Core 5 | 5 . . . . Treads . | . . . . . Legs 40 | . . . . 40 Wheels 360 | 92 245 23 . . Hover . | . . . . . Flight 1162 | . . 80 462 620 Fastest Speed 23 | 50 80 26 26 23 Average Speed 43 | 80 80 38 26 37 Slowest Speed 190 | 95 80 105 26 190 Overloaded Moves . | . . . . . Propulsion Burnouts . | . . . . . Robots Hopped 12 | . . 1 11 . Cave-ins Triggered . | . . . . . Exploration Rate (%) 31 | 4 41 10 52 48 Regions Visited 4 Branch Regions 1 Pre-discovered Areas . | . . . . . Known Exits Taken . | . . . . . Unknown Exits Taken 4 | 1 1 1 1 . Scrap Searched . | . . . . . Spaces Dug 10 | . 10 . . . Terrain Destroyed 11 | . 10 . 1 . Melee . | . . . . . Projectile 11 | . 10 . 1 . AOE . | . . . . . Terrain Rammed . | . . . . . Walls Destroyed . | . . . . . Machines Disabled . | . . . . . Actions | -11 -10 -9 -9 -8 --------- Run | Yrd Mat Mat Sto Mat Total 3743 | 122 1803 136 713 969 Wait 1844 | . 1511 8 199 126 Move 1540 | 96 244 100 440 660 Hop 11 | . . 1 10 . Pick Up 26 | 7 1 1 6 11 Fast Attach 45 | 7 1 4 12 21 Attach 17 | . 1 1 . 15 Detach 9 | . . . 1 8 Swap 17 | 1 4 2 5 5 Drop 55 | . 2 4 18 31 Fire 168 | 11 39 15 22 81 Melee 11 | . . . . 11 Ram . | . . . . . Kick . | . . . . . Crush . | . . . . . Escape Stasis . | . . . . . Rewire . | . . . . . Trap . | . . . . . Miscellaneous . | . . . . . Route ------- -11/Scrapyard -10/Materials -9/Materials -9/Storage -8/Materials History --------- Turn | Location | Event 23 | -11/Scrapyard | Discovered new exit (range 16) 128 | -11/Scrapyard | Entered Materials 300 | -10/Materials | Build established: Mutant 1140 | -10/Materials | Build established: Scavenger-Mutant 1954 | -10/Materials | Discovered new exit (range 12) 1965 | -10/Materials | Entered another Materials area 1965 | -9/Materials | Evolved 2 slots: Propulsion x2 2002 | -9/Materials | Discovered new exit (range 8) 2069 | -9/Materials | Entered Storage 2159 | -9/Storage | Garrison activated, responded to threat 2239 | -9/Storage | Assisted by bots powering up and referring to "LRC-V3" 2240 | -9/Storage | Discovered new exit (range 16) 2245 | -9/Storage | Met a pair of Derelict thieves 2349 | -9/Storage | Lost 7 allies 2396 | -9/Storage | Repaired Imp. Assault Rifle 2457 | -9/Storage | Repaired Imp. VTOL Module 2469 | -9/Storage | First assault squad dispatched 2495 | -9/Storage | Entered Materials 2495 | -8/Materials | Accompanied by 7 allies 2495 | -8/Materials | Evolved 2 slots: Power x1, Propulsion x1 2624 | -8/Materials | Lost 6 allies 2778 | -8/Materials | Core integrity fell below 50% 3063 | -8/Materials | Repaired Broken Imp. VTOL Module 3140 | -8/Materials | Core integrity fell below 20% 3179 | -8/Materials | Destroyed by G-47 Trooper with Particle Gun Last Messages --------------- 03130_ Dropped VTOL Module. 03131_ Acquired Imp. Deuterium Engine. 03132_ Dropped Hvy. Ion Engine. 03132_ Acquired Imp. Deuterium Engine. 03134_ Dropped Lightning Gun. 03134_ Acquired Spear. 03136_ Dropped Lightning Gun. 03137_ Acquired Spear. 03142_ G-47 Trooper suffers critical hit (Impale). 03142_ G-47 Trooper destroyed. 03155_ Critical hit (Burn: +37). 03160_ VTOL Module destroyed. 03160_ G-47 Trooper destroyed. 03163_ Imp. VTOL Module destroyed. 03163_ Imp. Deuterium Engine destroyed. 03164_ Acquired 41 matter. 03164_ Y-45 Defender destroyed. 03173_ Acquired VTOL Module. 03175_ R-06 Scavenger collects Beam Rifle. 03179_ R-06 Scavenger collects Lgt. Armor Plating. Map ----- +----------------------------------------------------+ | ?????????????????????????????????????????????????? | | ?????????????????????????????????????????????????? | | ?????????????????????????????????????????????????? | | ?????????????????????????????????????????????????? | | ???????????????????? ????????????????????????????? | | ??########?????????# #???????????????????????????? | | # #?????????# #???????????????????????????? | | #""" ! #?????????# #???????????????????????????? | | #""" #???###???# #???????????????????????????? | | #""" #?? ????# #???????????????????????????? | | # #? ????# ##??? ??????????????????????? | | #""" #? "" #??# ???? ??????????????????????? | | #""" # S"" #??# #????g??????????????????????? | | #""" # "" ?### ###?#g#?????????????????????? | | # # ???# ###g##????????????????????? | | ####+######+###### ##???????????????????? | | T T#???????????????????? | | ### ##???##??????????????? | | % #?# ## #??? ???????????????? | | ####+## # # #+######+#### #??? ???????????????? | | # # ## +?? ????????????????? | | """ #! ! # ## #? =?????????????????? | | """ # ! # ## #? ??????????????????? | | """ ! # """ # ## o # ??????????????????? | | # """ # ##g # ???????????????????? | | # """ !!!# ##@r +????????????????????? | | [= # !! # ## %#????????????????????? | | ![ = # ] !! # +%= =#????????????????????? | | =! = ################ ! #????????????????????? | | #########????????????# [#????????????????????? | | ?????????????????????#[[*[//#????????????????????? | | ?????????????????????#!*[[[ #????????????????????? | | ?????????????????????########????????????????????? | | ?????????????????????????????????????????????????? | | ?????????????????????????????????????????????????? | | ?????????????????????????????????????????????????? | | ?????????????????????????????????????????????????? | | ?????????????????????????????????????????????????? | | | | | | | | | | | | | | | | | | | | | | | | | +----------------------------------------------------+ Best States ------------- Heat Dissipation 67 Energy Generation 27 Energy Capacity 480 Matter Stores 300 Matter Capacity 300 Sight Range 16 Terrain Scan Range 16 Terrain Scan Density 10 Core Shielding 20 Evasion (%) 72 Item Schematics ----------------- None Robot Schematics ------------------ None Fabricated ------------ Nothing Alien Tech Used ----------------- None Achievements -------------- None Challenges ------------ None Game ------ Seed SubatomicMicroInterrupter Manual? 0 Play Time 00:30:54 Cumulative 61.2 hours Start 2024.04.07 @ 09:34:58 End 2024.04.07 @ 10:01:29 Sessions 1 Manual Loads 0 Difficulty Rogue Special Mode None Game No. 139 Rogue 139 Adventurer 0 Explorer 0 Win Type - Total 0 Types 0/0/0/0/0/0/0/0/0 Lore% 27 Gallery% 40 Achievement% 31 Wizard Run 0 Options --------- Layout 0 ASCII 0 Keyboard 1 Movement Numpad Keybinds 0 Fullscreen 1 Font 24/Terminus Map View 76x50 Zoom Use 0% Tactical HUD 1 Map Filters NONE Filters NONE Steam 1 RUN: 303de68e-f7f4-470e-8ec5-88106eb99430